[Event "Early-Titled-Tuesday-Blitz-May-14-2024"]
[Site "Chess.com"]
[Date "2024.05.14"]
[Round "3"]
[White "kyawmyataung2005"]
[Black "TheAlienParty"]
[Result "0-1"]
[WhiteElo "2256"]
[BlackElo "2426"]
[TimeControl "180+1"]
[EndTime "8:30:12 PDT"]
[Termination "TheAlienParty won by checkmate"]

1. e4 {[%clk 0:03:00.9]} 1... e5 {[%clk 0:02:59]} 2. Nf3 {[%clk 0:03:00.2]} 2...
Nc6 {[%clk 0:02:58.8]} 3. Bb5 {[%clk 0:02:59.8]} 3... a6 {[%clk 0:02:58.5]} 4.
Ba4 {[%clk 0:02:59.7]} 4... d6 {[%clk 0:02:58.3]} 5. c3 {[%clk 0:02:59.2]} 5...
Bd7 {[%clk 0:02:47.6]} 6. O-O {[%clk 0:02:58.4]} 6... g5 {[%clk 0:02:46.5]} 7.
d4 {[%clk 0:02:46.3]} 7... g4 {[%clk 0:02:46.2]} 8. Ne1 {[%clk 0:02:32.9]} 8...
h5 {[%clk 0:02:45.6]} 9. f4 {[%clk 0:02:30.9]} 9... exf4 {[%clk 0:02:43.4]} 10.
Bxf4 {[%clk 0:02:30.5]} 10... Bh6 {[%clk 0:02:42.8]} 11. Nd3 {[%clk 0:02:23.8]}
11... Qe7 {[%clk 0:02:42.1]} 12. Nd2 {[%clk 0:02:15.7]} 12... O-O-O {[%clk
0:02:41.4]} 13. b4 {[%clk 0:02:08.4]} 13... Bxf4 {[%clk 0:02:39.4]} 14. Nxf4
{[%clk 0:02:08.1]} 14... Qg5 {[%clk 0:02:36.6]} 15. Rb1 {[%clk 0:01:52.9]} 15...
Nf6 {[%clk 0:02:32.4]} 16. b5 {[%clk 0:01:52.1]} 16... axb5 {[%clk 0:02:30.4]}
17. Bxb5 {[%clk 0:01:40.1]} 17... Rde8 {[%clk 0:02:28.2]} 18. Qb3 {[%clk
0:01:31.6]} 18... Nxe4 {[%clk 0:02:16.3]} 19. Nxe4 {[%clk 0:01:04]} 19... Rxe4
{[%clk 0:02:15.7]} 20. Bd3 {[%clk 0:00:56.2]} 20... Na5 {[%clk 0:02:13.7]} 21.
Qxf7 {[%clk 0:00:53.2]} 21... Re7 {[%clk 0:02:12.6]} 22. Qg6 {[%clk 0:00:43.1]}
22... Rg8 {[%clk 0:02:01.5]} 23. Qxg5 {[%clk 0:00:42.4]} 23... Rxg5 {[%clk
0:02:01.1]} 24. Rbe1 {[%clk 0:00:42.1]} 24... Rxe1 {[%clk 0:01:36.8]} 25. Rxe1
{[%clk 0:00:42]} 25... b5 {[%clk 0:01:35.6]} 26. Re7 {[%clk 0:00:34.3]} 26... h4
{[%clk 0:01:26.3]} 27. Rh7 {[%clk 0:00:25.5]} 27... h3 {[%clk 0:01:23.3]} 28. g3
{[%clk 0:00:22.7]} 28... Nc4 {[%clk 0:01:15.8]} 29. Rh8+ {[%clk 0:00:19.8]}
29... Kb7 {[%clk 0:01:15]} 30. Kf2 {[%clk 0:00:19.9]} 30... Bc6 {[%clk
0:01:07.7]} 31. Rh7 {[%clk 0:00:14.2]} 31... Rg8 {[%clk 0:01:01.2]} 32. Ne6
{[%clk 0:00:13.6]} 32... Rc8 {[%clk 0:01:00.9]} 33. Bxc4 {[%clk 0:00:12.9]}
33... bxc4 {[%clk 0:01:00.5]} 34. Rg7 {[%clk 0:00:12.6]} 34... Bd5 {[%clk
0:00:54.8]} 35. Nf4 {[%clk 0:00:12.6]} 35... Bf3 {[%clk 0:00:54.6]} 36. Ne6
{[%clk 0:00:12.6]} 36... Kc6 {[%clk 0:00:52]} 37. Nf4 {[%clk 0:00:11.8]} 37...
Ra8 {[%clk 0:00:51.1]} 38. Ke3 {[%clk 0:00:11.6]} 38... Rxa2 {[%clk 0:00:50.2]}
39. d5+ {[%clk 0:00:11.6]} 39... Kb6 {[%clk 0:00:49.5]} 40. Kd4 {[%clk
0:00:11.3]} 40... Rxh2 {[%clk 0:00:46.4]} 41. Kxc4 {[%clk 0:00:11.2]} 41... Rg2
{[%clk 0:00:41.8]} 42. Ne6 {[%clk 0:00:07.7]} 42... h2 {[%clk 0:00:39.1]} 43.
Rxc7 {[%clk 0:00:05.6]} 43... Bxd5+ {[%clk 0:00:28.5]} 44. Kxd5 {[%clk
0:00:05.3]} 44... Rd2+ {[%clk 0:00:28.4]} 45. Kc4 {[%clk 0:00:04.8]} 45... h1=Q
{[%clk 0:00:24.6]} 46. Re7 {[%clk 0:00:04.1]} 46... Qc6+ {[%clk 0:00:22.9]} 47.
Kb4 {[%clk 0:00:04]} 47... Qb5+ {[%clk 0:00:20.5]} 48. Ka3 {[%clk 0:00:03.7]}
48... Qb2+ {[%clk 0:00:19.1]} 49. Ka4 {[%clk 0:00:03.7]} 49... Qa2+ {[%clk
0:00:18.9]} 50. Kb4 {[%clk 0:00:03.8]} 50... Rb2# {[%clk 0:00:18.8]} 0-1

[Event "Early-Titled-Tuesday-Blitz-May-14-2024"]
[Site "Chess.com"]
[Date "2024.05.14"]
[Round "3"]
[White "laiciffOneslraCsungaM"]
[Black "Mops_2004"]
[Result "0-1"]
[WhiteElo "2409"]
[BlackElo "2821"]
[TimeControl "180+1"]
[EndTime "8:30:13 PDT"]
[Termination "Mops_2004 won on time"]

1. Nf3 {[%clk 0:03:00.9]} 1... d5 {[%clk 0:02:59.7]} 2. g3 {[%clk 0:03:01.3]}
2... Nf6 {[%clk 0:02:59.8]} 3. Bg2 {[%clk 0:03:01.7]} 3... c6 {[%clk 0:03:00.1]}
4. O-O {[%clk 0:03:02.2]} 4... Bg4 {[%clk 0:03:00.6]} 5. b3 {[%clk 0:03:02.5]}
5... e6 {[%clk 0:02:59.3]} 6. Bb2 {[%clk 0:03:02.9]} 6... Be7 {[%clk 0:02:57.7]}
7. d3 {[%clk 0:03:03.4]} 7... O-O {[%clk 0:02:57.7]} 8. Nbd2 {[%clk 0:03:03.9]}
8... a5 {[%clk 0:02:58]} 9. a3 {[%clk 0:03:03.4]} 9... Na6 {[%clk 0:02:56.7]}
10. h3 {[%clk 0:03:01.5]} 10... Bh5 {[%clk 0:02:56.2]} 11. c4 {[%clk 0:03:00.4]}
11... Qb6 {[%clk 0:02:46.4]} 12. Ne5 {[%clk 0:02:43.4]} 12... Rfd8 {[%clk
0:02:41.3]} 13. g4 {[%clk 0:02:25.4]} 13... Bg6 {[%clk 0:02:40.7]} 14. Nxg6
{[%clk 0:02:26]} 14... hxg6 {[%clk 0:02:40.6]} 15. Qc2 {[%clk 0:02:26.7]} 15...
Nd7 {[%clk 0:02:36.6]} 16. e4 {[%clk 0:02:23.2]} 16... Rac8 {[%clk 0:02:11.2]}
17. Rae1 {[%clk 0:01:59.6]} 17... Bc5 {[%clk 0:01:52.5]} 18. Qc3 {[%clk
0:01:43.9]} 18... Nf6 {[%clk 0:01:38.8]} 19. d4 {[%clk 0:01:38.2]} 19... Be7
{[%clk 0:01:27.8]} 20. e5 {[%clk 0:01:31.5]} 20... Nh7 {[%clk 0:01:24.8]} 21. c5
{[%clk 0:01:28.2]} 21... Qc7 {[%clk 0:01:14.4]} 22. Qd3 {[%clk 0:01:20]} 22...
Qd7 {[%clk 0:00:38.5]} 23. Bc3 {[%clk 0:01:13.2]} 23... a4 {[%clk 0:00:35.6]}
24. b4 {[%clk 0:01:09.2]} 24... Nc7 {[%clk 0:00:35.2]} 25. f4 {[%clk 0:01:07.4]}
25... Rf8 {[%clk 0:00:28.6]} 26. Nb1 {[%clk 0:00:56.9]} 26... b6 {[%clk
0:00:25.2]} 27. Nd2 {[%clk 0:00:53]} 27... bxc5 {[%clk 0:00:25]} 28. dxc5 {[%clk
0:00:53.4]} 28... Nb5 {[%clk 0:00:21.8]} 29. Nf3 {[%clk 0:00:50.8]} 29... Nxa3
{[%clk 0:00:19.2]} 30. Nd4 {[%clk 0:00:48.4]} 30... Nb5 {[%clk 0:00:17]} 31. f5
{[%clk 0:00:41.7]} 31... gxf5 {[%clk 0:00:17.2]} 32. gxf5 {[%clk 0:00:41.7]}
32... Nxd4 {[%clk 0:00:17.9]} 33. Bxd4 {[%clk 0:00:38.2]} 33... exf5 {[%clk
0:00:17.7]} 34. Rxf5 {[%clk 0:00:34.5]} 34... Ng5 {[%clk 0:00:17.7]} 35. Ref1
{[%clk 0:00:19.2]} 35... Ne6 {[%clk 0:00:16.6]} 36. Ba1 {[%clk 0:00:17.3]} 36...
Bg5 {[%clk 0:00:15.4]} 37. h4 {[%clk 0:00:13]} 37... Bh6 {[%clk 0:00:15.3]} 38.
Bh3 {[%clk 0:00:09.5]} 38... Qe7 {[%clk 0:00:15.1]} 39. Qg3 {[%clk 0:00:09.7]}
39... Rce8 {[%clk 0:00:13.3]} 40. Rf6 {[%clk 0:00:09.6]} 40... Kh8 {[%clk
0:00:12.9]} 41. Rxh6+ {[%clk 0:00:06.9]} 41... gxh6 {[%clk 0:00:07.1]} 42. Rf6
{[%clk 0:00:06]} 42... Ng7 {[%clk 0:00:07.6]} 43. Rxh6+ {[%clk 0:00:05.8]} 43...
Kg8 {[%clk 0:00:08.3]} 44. e6 {[%clk 0:00:06.3]} 44... f6 {[%clk 0:00:03.1]} 45.
Rg6 {[%clk 0:00:04.8]} 45... d4 {[%clk 0:00:03.5]} 46. Bxd4 {[%clk 0:00:03.9]}
46... Rd8 {[%clk 0:00:03.1]} 47. Bc3 {[%clk 0:00:02.9]} 47... Rd5 {[%clk
0:00:03.1]} 0-1

[Event "Early-Titled-Tuesday-Blitz-May-14-2024"]
[Site "Chess.com"]
[Date "2024.05.14"]
[Round "3"]
[White "SayonaraPonytail"]
[Black "kleinebeer98"]
[Result "0-1"]
[WhiteElo "2554"]
[BlackElo "2976"]
[TimeControl "180+1"]
[EndTime "8:30:13 PDT"]
[Termination "kleinebeer98 won on time"]

1. e4 {[%clk 0:02:58.8]} 1... g6 {[%clk 0:03:00.9]} 2. Nc3 {[%clk 0:02:58.7]}
2... Bg7 {[%clk 0:03:01.8]} 3. f4 {[%clk 0:02:59.3]} 3... d6 {[%clk 0:03:02.7]}
4. Nf3 {[%clk 0:02:59.9]} 4... b6 {[%clk 0:03:02.9]} 5. Bc4 {[%clk 0:03:00.2]}
5... e6 {[%clk 0:03:02.3]} 6. Bb3 {[%clk 0:02:59.2]} 6... Bb7 {[%clk 0:03:01.2]}
7. d3 {[%clk 0:02:59.5]} 7... Nd7 {[%clk 0:02:58.8]} 8. a4 {[%clk 0:02:58.4]}
8... a6 {[%clk 0:02:58.5]} 9. O-O {[%clk 0:02:58.4]} 9... Ngf6 {[%clk
0:02:58.6]} 10. Qe1 {[%clk 0:02:58.1]} 10... Nc5 {[%clk 0:02:57.9]} 11. Ba2
{[%clk 0:02:58.2]} 11... O-O {[%clk 0:02:57.2]} 12. f5 {[%clk 0:02:57.3]} 12...
exf5 {[%clk 0:02:56.9]} 13. exf5 {[%clk 0:02:52.7]} 13... d5 {[%clk 0:02:57.5]}
14. Qh4 {[%clk 0:02:49.4]} 14... Qd7 {[%clk 0:02:52.9]} 15. Bg5 {[%clk
0:02:47.4]} 15... Nh5 {[%clk 0:02:53.4]} 16. f6 {[%clk 0:02:42.2]} 16... Bh8
{[%clk 0:02:45.5]} 17. g4 {[%clk 0:02:42.1]} 17... d4 {[%clk 0:02:46.2]} 18. Ne2
{[%clk 0:02:38.4]} 18... Rae8 {[%clk 0:02:38.3]} 19. Nexd4 {[%clk 0:02:34.4]}
19... Nxf6 {[%clk 0:02:31]} 20. Bxf6 {[%clk 0:02:33.8]} 20... Bxf6 {[%clk
0:02:31.9]} 21. Qxf6 {[%clk 0:02:17.8]} 21... Qxg4+ {[%clk 0:02:32.6]} 22. Kf2
{[%clk 0:02:18.4]} 22... Re4 {[%clk 0:02:29.5]} 23. Rg1 {[%clk 0:02:10.4]} 23...
Qf4 {[%clk 0:02:26.4]} 24. Qxf4 {[%clk 0:02:04.4]} 24... Rxf4 {[%clk 0:02:27.3]}
25. Kg3 {[%clk 0:02:02.6]} 25... Rf6 {[%clk 0:02:26.6]} 26. a5 {[%clk
0:01:53.6]} 26... Rd8 {[%clk 0:02:25.1]} 27. Rge1 {[%clk 0:01:43.5]} 27... Kf8
{[%clk 0:02:22.8]} 28. axb6 {[%clk 0:01:39.4]} 28... Rxb6 {[%clk 0:02:23.7]} 29.
Bc4 {[%clk 0:01:34.4]} 29... Rxb2 {[%clk 0:02:22.2]} 30. Rab1 {[%clk 0:01:27.7]}
30... Rb6 {[%clk 0:02:22.2]} 31. Rf1 {[%clk 0:01:25.9]} 31... f6 {[%clk
0:02:19.8]} 32. Rxb6 {[%clk 0:01:20]} 32... cxb6 {[%clk 0:02:20.7]} 33. Nb3
{[%clk 0:01:20.2]} 33... Nd7 {[%clk 0:02:14.3]} 34. Ng5 {[%clk 0:01:19]} 34...
Ke7 {[%clk 0:02:11.7]} 35. Re1+ {[%clk 0:01:16.4]} 35... Ne5 {[%clk 0:02:12.4]}
36. Nf7 {[%clk 0:01:16.3]} 36... Rc8 {[%clk 0:02:03.6]} 37. Nxe5 {[%clk
0:01:16.1]} 37... fxe5 {[%clk 0:02:04.5]} 38. Rxe5+ {[%clk 0:01:16.5]} 38... Kd6
{[%clk 0:02:05.4]} 39. Re6+ {[%clk 0:01:14.2]} 39... Kc7 {[%clk 0:02:06.1]} 40.
Re7+ {[%clk 0:01:13.1]} 40... Kb8 {[%clk 0:02:06.8]} 41. Nd4 {[%clk 0:01:11.7]}
41... b5 {[%clk 0:02:06.9]} 42. Bb3 {[%clk 0:01:11.9]} 42... h5 {[%clk
0:02:05.4]} 43. h4 {[%clk 0:01:07.4]} 43... Rc5 {[%clk 0:02:04.9]} 44. Ne6
{[%clk 0:01:06.6]} 44... Rf5 {[%clk 0:02:03.5]} 45. Ng5 {[%clk 0:00:58.5]} 45...
a5 {[%clk 0:02:02.4]} 46. Be6 {[%clk 0:00:52.3]} 46... Rc5 {[%clk 0:02:01.3]}
47. c4 {[%clk 0:00:50.7]} 47... b4 {[%clk 0:02:01.5]} 48. Rf7 {[%clk 0:00:47.3]}
48... b3 {[%clk 0:01:59.5]} 49. Rf1 {[%clk 0:00:47.4]} 49... a4 {[%clk
0:01:59.4]} 50. d4 {[%clk 0:00:47.9]} 50... Ra5 {[%clk 0:01:52.5]} 51. c5 {[%clk
0:00:48]} 51... b2 {[%clk 0:01:53.1]} 52. Ba2 {[%clk 0:00:47.1]} 52... a3 {[%clk
0:01:52.5]} 53. Ne6 {[%clk 0:00:46.1]} 53... Bc8 {[%clk 0:01:49.5]} 54. Nf4
{[%clk 0:00:42.8]} 54... Bf5 {[%clk 0:01:49.3]} 55. Ne2 {[%clk 0:00:38.5]} 55...
Ra4 {[%clk 0:01:47.8]} 56. d5 {[%clk 0:00:34.7]} 56... Rg4+ {[%clk 0:01:48.7]}
57. Kf2 {[%clk 0:00:34.7]} 57... Rxh4 {[%clk 0:01:48.2]} 58. Nc3 {[%clk
0:00:32]} 58... Rh3 {[%clk 0:01:45.3]} 59. Nb1 {[%clk 0:00:26.3]} 59... h4
{[%clk 0:01:39.3]} 60. d6 {[%clk 0:00:25.1]} 60... Rd3 {[%clk 0:01:40]} 61. Ke2
{[%clk 0:00:23.9]} 61... h3 {[%clk 0:01:38.2]} 62. Rxf5 {[%clk 0:00:20.9]} 62...
gxf5 {[%clk 0:01:39.1]} 63. Kxd3 {[%clk 0:00:21.4]} 63... h2 {[%clk 0:01:39.9]}
64. Bd5 {[%clk 0:00:19.4]} 64... a2 {[%clk 0:01:40.8]} 65. c6 {[%clk 0:00:18.9]}
65... h1=Q {[%clk 0:01:36.3]} 66. c7+ {[%clk 0:00:18.6]} 66... Ka7 {[%clk
0:01:33.9]} 67. Bxh1 {[%clk 0:00:16.9]} 67... axb1=Q+ {[%clk 0:01:34]} 68. Kd4
{[%clk 0:00:16]} 68... Qxh1 {[%clk 0:01:31.5]} 69. c8=Q {[%clk 0:00:15]} 69...
Qe4+ {[%clk 0:01:30.1]} 70. Kc3 {[%clk 0:00:13.9]} 70... b1=Q {[%clk 0:01:30.7]}
71. Qc7+ {[%clk 0:00:14.2]} 71... Qbb7 {[%clk 0:01:29.2]} 72. Qa5+ {[%clk
0:00:13.9]} 72... Qa6 {[%clk 0:01:29.9]} 73. Qc7+ {[%clk 0:00:14.1]} 73... Qeb7
{[%clk 0:01:29.4]} 74. Qc5+ {[%clk 0:00:14.4]} 74... Ka8 {[%clk 0:01:29]} 75. d7
{[%clk 0:00:13.2]} 75... Qa1+ {[%clk 0:01:26.4]} 76. Kd2 {[%clk 0:00:12.1]}
76... Qxd7+ {[%clk 0:01:25.8]} 0-1

[Event "Early-Titled-Tuesday-Blitz-May-14-2024"]
[Site "Chess.com"]
[Date "2024.05.14"]
[Round "3"]
[White "OparinGrigoriy"]
[Black "Sadykov_Ramil"]
[Result "1-0"]
[WhiteElo "2978"]
[BlackElo "2610"]
[TimeControl "180+1"]
[EndTime "8:30:14 PDT"]
[Termination "OparinGrigoriy won by resignation"]

1. c4 {[%clk 0:02:56.2]} 1... e6 {[%clk 0:02:51.3]} 2. Nc3 {[%clk 0:02:56.3]}
2... d5 {[%clk 0:02:40.1]} 3. d4 {[%clk 0:02:56.6]} 3... Nf6 {[%clk 0:02:38.3]}
4. cxd5 {[%clk 0:02:57]} 4... exd5 {[%clk 0:02:39]} 5. Bg5 {[%clk 0:02:57.3]}
5... Be7 {[%clk 0:02:37.8]} 6. e3 {[%clk 0:02:57.5]} 6... O-O {[%clk 0:02:36.5]}
7. Bd3 {[%clk 0:02:57.5]} 7... Re8 {[%clk 0:02:33.7]} 8. Qc2 {[%clk 0:02:56.9]}
8... h6 {[%clk 0:02:30.6]} 9. Bh4 {[%clk 0:02:54.4]} 9... c5 {[%clk 0:02:30.4]}
10. Nge2 {[%clk 0:02:34.2]} 10... Nc6 {[%clk 0:02:30.2]} 11. O-O {[%clk
0:02:34.5]} 11... cxd4 {[%clk 0:02:20]} 12. Nxd4 {[%clk 0:02:34.2]} 12... Nxd4
{[%clk 0:02:18.6]} 13. exd4 {[%clk 0:02:35.1]} 13... Be6 {[%clk 0:02:11.6]} 14.
Qb3 {[%clk 0:02:31]} 14... Ne4 {[%clk 0:01:58.8]} 15. Bxe7 {[%clk 0:02:24.8]}
15... Rxe7 {[%clk 0:01:59.7]} 16. Rfe1 {[%clk 0:02:22.4]} 16... Nxc3 {[%clk
0:01:51.4]} 17. Qxc3 {[%clk 0:02:23.3]} 17... Rc8 {[%clk 0:01:49.9]} 18. Qb4
{[%clk 0:02:23.1]} 18... Rec7 {[%clk 0:01:44.1]} 19. Qd2 {[%clk 0:01:56.8]}
19... Qf6 {[%clk 0:01:35.2]} 20. Re5 {[%clk 0:01:52.2]} 20... Rc6 {[%clk
0:00:57.3]} 21. Rae1 {[%clk 0:01:52.1]} 21... Qd8 {[%clk 0:00:51.2]} 22. Bb1
{[%clk 0:01:45.9]} 22... Qc7 {[%clk 0:00:48.1]} 23. Qd3 {[%clk 0:01:41.6]} 23...
g6 {[%clk 0:00:43.3]} 24. Qd2 {[%clk 0:01:39.2]} 24... Rc1 {[%clk 0:00:42.8]}
25. h4 {[%clk 0:01:25.8]} 25... Rxe1+ {[%clk 0:00:37.3]} 26. Rxe1 {[%clk
0:01:14.9]} 26... Kg7 {[%clk 0:00:35.6]} 27. g3 {[%clk 0:01:06]} 27... Qd6
{[%clk 0:00:31.6]} 28. a3 {[%clk 0:01:01]} 28... b6 {[%clk 0:00:31.7]} 29. Bd3
{[%clk 0:00:59.9]} 29... Qd8 {[%clk 0:00:28.8]} 30. Rc1 {[%clk 0:00:58.1]} 30...
Rxc1+ {[%clk 0:00:26.1]} 31. Qxc1 {[%clk 0:00:59]} 31... Qc8 {[%clk 0:00:24.4]}
32. Qe3 {[%clk 0:00:57.3]} 32... Qc7 {[%clk 0:00:21.9]} 33. Kg2 {[%clk
0:00:55.7]} 33... Qe7 {[%clk 0:00:14.3]} 34. f3 {[%clk 0:00:54.3]} 34... g5
{[%clk 0:00:12.9]} 35. Qe5+ {[%clk 0:00:51.3]} 35... Qf6 {[%clk 0:00:12.8]} 36.
Kf2 {[%clk 0:00:41.3]} 36... gxh4 {[%clk 0:00:06]} 37. gxh4 {[%clk 0:00:42.2]}
37... Qxe5 {[%clk 0:00:04.8]} 38. dxe5 {[%clk 0:00:43.1]} 38... f6 {[%clk
0:00:04.1]} 39. f4 {[%clk 0:00:42.5]} 39... d4 {[%clk 0:00:03.3]} 40. Be4 {[%clk
0:00:36.1]} 40... f5 {[%clk 0:00:02]} 41. Bc6 {[%clk 0:00:29.9]} 41... Kg6
{[%clk 0:00:01.6]} 42. Be8+ {[%clk 0:00:29.3]} 42... Kg7 {[%clk 0:00:01.8]} 43.
Ke2 {[%clk 0:00:29.9]} 43... Bc4+ {[%clk 0:00:02]} 44. Kd2 {[%clk 0:00:30.2]}
44... a5 {[%clk 0:00:01.4]} 45. Bh5 {[%clk 0:00:28.9]} 45... Bb5 {[%clk
0:00:00.5]} 46. Be2 {[%clk 0:00:27.6]} 46... Bc6 {[%clk 0:00:00.8]} 47. Bd3
{[%clk 0:00:22]} 47... Be4 {[%clk 0:00:01.7]} 48. Bc4 {[%clk 0:00:22]} 48... Kf8
{[%clk 0:00:01.5]} 49. b4 {[%clk 0:00:16.4]} 49... axb4 {[%clk 0:00:02.4]} 50.
axb4 {[%clk 0:00:17.3]} 50... Ke7 {[%clk 0:00:02.9]} 51. Kc1 {[%clk 0:00:17.2]}
51... Kd7 {[%clk 0:00:03.4]} 52. Kb2 {[%clk 0:00:17.6]} 52... Kc6 {[%clk
0:00:04]} 53. Kb3 {[%clk 0:00:17.2]} 53... Kc7 {[%clk 0:00:03.6]} 54. Be6 {[%clk
0:00:14.8]} 54... Kc6 {[%clk 0:00:03.9]} 55. Kc4 {[%clk 0:00:14.9]} 55... Kc7
{[%clk 0:00:03.3]} 56. Kxd4 {[%clk 0:00:15]} 56... Kc6 {[%clk 0:00:03.1]} 57.
Bc4 {[%clk 0:00:15.7]} 57... Kd7 {[%clk 0:00:02.7]} 58. Bd3 {[%clk 0:00:15.5]}
58... Ke6 {[%clk 0:00:01.5]} 59. Bxe4 {[%clk 0:00:15.7]} 1-0

[Event "Early-Titled-Tuesday-Blitz-May-14-2024"]
[Site "Chess.com"]
[Date "2024.05.14"]
[Round "3"]
[White "Zhigalko_Sergei"]
[Black "aloe_normansen"]
[Result "0-1"]
[WhiteElo "2845"]
[BlackElo "2563"]
[TimeControl "180+1"]
[EndTime "8:30:14 PDT"]
[Termination "aloe_normansen won on time"]

1. e4 {[%clk 0:03:00.9]} 1... c5 {[%clk 0:02:59.1]} 2. Nf3 {[%clk 0:03:00.1]}
2... d6 {[%clk 0:02:59.5]} 3. d4 {[%clk 0:02:59.8]} 3... cxd4 {[%clk 0:02:59.6]}
4. Qxd4 {[%clk 0:03:00.7]} 4... Nf6 {[%clk 0:03:00.3]} 5. Nc3 {[%clk 0:03:00.1]}
5... a6 {[%clk 0:02:56.2]} 6. Bc4 {[%clk 0:03:00.2]} 6... Nc6 {[%clk 0:02:55.2]}
7. Qd3 {[%clk 0:03:00.6]} 7... g6 {[%clk 0:02:40.4]} 8. Bg5 {[%clk 0:02:55.4]}
8... Bg7 {[%clk 0:02:39.7]} 9. O-O-O {[%clk 0:02:55.5]} 9... O-O {[%clk
0:02:38.6]} 10. Bb3 {[%clk 0:02:51.9]} 10... Nd7 {[%clk 0:02:30.2]} 11. Qe3
{[%clk 0:02:49.3]} 11... b5 {[%clk 0:02:14.4]} 12. h4 {[%clk 0:02:36.8]} 12...
h5 {[%clk 0:02:11.4]} 13. Kb1 {[%clk 0:02:22.8]} 13... Bb7 {[%clk 0:02:02.9]}
14. g4 {[%clk 0:01:32.8]} 14... hxg4 {[%clk 0:01:54.8]} 15. h5 {[%clk
0:01:33.7]} 15... Nc5 {[%clk 0:01:22.6]} 16. Bh6 {[%clk 0:00:51.8]} 16... Nxb3
{[%clk 0:01:18.1]} 17. Bxg7 {[%clk 0:00:33.4]} 17... Kxg7 {[%clk 0:01:19]} 18.
hxg6 {[%clk 0:00:32.1]} 18... Rh8 {[%clk 0:01:16]} 19. gxf7 {[%clk 0:00:21]}
19... e5 {[%clk 0:01:06.2]} 20. Rxh8 {[%clk 0:00:10.3]} 20... Qxh8 {[%clk
0:01:02.8]} 21. Qg5+ {[%clk 0:00:07.1]} 21... Kxf7 {[%clk 0:01:02.6]} 22. Rxd6
{[%clk 0:00:02.2]} 22... Qh1+ {[%clk 0:00:55.7]} 23. Nd1 {[%clk 0:00:02]} 23...
Qxf3 {[%clk 0:00:53.5]} 24. Qg6+ {[%clk 0:00:02]} 24... Ke7 {[%clk 0:00:49.5]}
25. Re6+ {[%clk 0:00:01.3]} 25... Kd7 {[%clk 0:00:49.3]} 26. Rd6+ {[%clk
0:00:01.1]} 26... Kc7 {[%clk 0:00:49]} 27. axb3 {[%clk 0:00:01.7]} 27... Rd8
{[%clk 0:00:47.9]} 28. Rxd8 {[%clk 0:00:01.5]} 28... Nxd8 {[%clk 0:00:47.3]} 29.
Nc3 {[%clk 0:00:01.8]} 29... b4 {[%clk 0:00:44.7]} 30. Nd5+ {[%clk 0:00:01.4]}
30... Bxd5 {[%clk 0:00:44.6]} 31. exd5 {[%clk 0:00:02]} 31... Qxd5 {[%clk
0:00:39.3]} 32. Qxg4 {[%clk 0:00:02]} 32... Nc6 {[%clk 0:00:37.2]} 33. Ka2
{[%clk 0:00:02.2]} 33... Qa5+ {[%clk 0:00:36.1]} 34. Kb1 {[%clk 0:00:02.3]}
34... Qd5 {[%clk 0:00:37]} 35. Ka2 {[%clk 0:00:02.6]} 35... Nd4 {[%clk
0:00:36.3]} 36. Qg7+ {[%clk 0:00:02.7]} 36... Kb6 {[%clk 0:00:35.4]} 37. Qf6+
{[%clk 0:00:02.6]} 37... Nc6 {[%clk 0:00:34.7]} 38. f3 {[%clk 0:00:02.1]} 38...
Qd1 {[%clk 0:00:34]} 39. Qf5 {[%clk 0:00:01.1]} 39... a5 {[%clk 0:00:27.8]} 40.
Qe4 {[%clk 0:00:01.2]} 40... Qd4 {[%clk 0:00:27.3]} 41. Qf5 {[%clk 0:00:01.7]}
41... Qc5 {[%clk 0:00:26.6]} 42. Qe4 {[%clk 0:00:01.7]} 42... Nd4 {[%clk
0:00:26.1]} 43. Kb1 {[%clk 0:00:01.9]} 43... Qc6 {[%clk 0:00:23.2]} 44. Qxe5
{[%clk 0:00:01.6]} 44... Qxc2+ {[%clk 0:00:23.5]} 45. Ka1 {[%clk 0:00:01.8]}
45... Nxb3+ {[%clk 0:00:23.3]} 46. Ka2 {[%clk 0:00:02.6]} 46... Nc1+ {[%clk
0:00:22.1]} 47. Ka1 {[%clk 0:00:03]} 47... Nb3+ {[%clk 0:00:20.3]} 48. Ka2
{[%clk 0:00:03.3]} 48... Nc5 {[%clk 0:00:20.6]} 49. Qf6+ {[%clk 0:00:02.6]}
49... Kb5 {[%clk 0:00:19.6]} 50. Qf7 {[%clk 0:00:03.5]} 50... Qa4+ {[%clk
0:00:18.5]} 51. Kb1 {[%clk 0:00:03.5]} 51... Qd1+ {[%clk 0:00:19.1]} 52. Ka2
{[%clk 0:00:04.2]} 52... b3+ {[%clk 0:00:19.6]} 53. Qxb3+ {[%clk 0:00:02.2]}
53... Qxb3+ {[%clk 0:00:20.5]} 54. Ka1 {[%clk 0:00:02.5]} 54... Nd3 {[%clk
0:00:20.2]} 0-1